Workbook

Sheet 01.04.2019
E2: Приложение № 11
E3: к постановлению администрации
E4: ЗАТО г.Радужный Владимирской области
E5: от 25.04.2019г. № 590
C6: Сведения о фактической численности муниципальных служащих, работников казенных и бюджетных учреждений и расходы на их денежное содержание по состоянию на 01.04.2019 г.
F8: Ед.изм.тыс.руб.
A9: №п/п | B9: Раздел (подраздел) | C9: Наименование разделов (подразделов) расходов | D9: Фактическая численность на 01.04. 2019г. (чел.) | E9: Годовой фонд оплаты труда с начислениями | F9: Исполнено за отчетный период
A10: 1 | B10: 2 | C10: 3 | D10: 4 | E10: 5 | F10: 6
A11: 1 | B11: 0100 | C11: Общегосударственные вопросы, всего, в том числе | D11: =D12+D13+D14+D15+D16 -> 180 | E11: =E13+E14+E15+E16 -> 56437.1 | F11: =F13+F14+F15+F16 -> 12023.662
A12: 1.1 | B12: 0102 | C12: Функционирование высшего должностного лица субъекта Российской Федерации и муниципального образования | D12: 1
A13: 1.2 | B13: 0103 | C13: Функционирование представительных органов местного самоуправления | D13: 2 | E13: 1148.7 | F13: 212.22
A14: 1.3 | B14: 0104 | C14: Функционирование местных администраций | D14: 18 | E14: 10396.95 | F14: 1762.23
A15: 1.4 | B15: 0106 | C15: Обеспечение деятельности финансовых органов | D15: 9 | E15: 5047.82 | F15: 829.19
A16: 1.5 | B16: 0113 | C16: Другие общегосударственные вопросы | D16: 150 | E16: 39843.63 | F16: 9220.022
A17: 2 | B17: 0300 | C17: Национальная безопасность и правоохранительная деятельность, всего, в т. ч. | D17: =D18 -> 5 | E17: =E18 -> 2227.71 | F17: =F18 -> 595.82
A18: 2.1 | B18: 0309 | C18: Защита населения и территории от последствий чрезвычайных ситуаций природного и техногенного характера,гражданская оборона | D18: 5 | E18: 2227.71 | F18: 595.82
A19: 3. | B19: 0400 | C19: Национальная экономика | D19: 39 | E19: 14823.89 | F19: 2669.25
A20: 4 | B20: 0500 | C20: Жилищно-коммунальное хозяйство | D20: 95 | E20: 34347.85 | F20: 7804.9
A21: 5 | B21: 0700 | C21: Образование,всего,в том числе | D21: =D22+D23+D24+D25 -> 578 | E21: =E22+E23+E24+E25 -> 213007.7 | F21: =F22+F23+F24+F25 -> 50597.9
A22: 5.1 | B22: 0701 | C22: Дошкольное образование | D22: 252 | E22: 83155.74 | F22: 20392.11
A23: 5.2 | B23: 0702 | C23: Общее образование | D23: 195 | E23: 83563.3 | F23: 20002.1
A24: 5.3 | B24: 0703 | C24: Учреждения по внешкольной работе с детьми | D24: =44+61 -> 105 | E24: =18129.11+18483.92 -> 36613.03 | F24: 8046.53
A25: 5.4. | B25: 0709 | C25: Другие вопросы в области образования, всего, в том числе | D25: 26 | E25: 9675.63 | F25: 2157.16
A26: 6. | B26: 0800 | C26: Культура, кинематография | D26: =D27+D28 -> 94 | E26: =E27+E28 -> 30657.46 | F26: =F27+F28 -> 7363.14
A27: 6.1 | B27: 0801 | C27: Культура | D27: 55 | E27: 19969.22 | F27: 4915.36
A28: 6.2 | B28: 0804 | C28: Другие вопросы в области культуры,кинематографии | D28: 39 | E28: 10688.24 | F28: 2447.78
A29: 7. | B29: 1000 | C29: Социальная политика | D29: =D30 -> 2 | E29: =E30 -> 961.17 | F29: =F30 -> 155.33
A30: 7.1 | B30: 1006 | C30: Другие вопросы в области социальной политики | D30: 2 | E30: 961.17 | F30: 155.33
A31: 8. | B31: 1100 | C31: Физическая культура и спорт | D31: =D32 -> 1 | E31: =E32 -> 729.63 | F31: =F32 -> 22.07
A32: 8.1 | B32: 1103 | C32: Спорт высших достижений | D32: 1 | E32: 729.63 | F32: 22.07
C33: Всего: | D33: =D11+D17+D19+D20+D21+D26+D29+D31 -> 994 | E33: =E11+E17+E19+E20+E21+E26+E29+E31 -> 353192.51 | F33: 81232.072
B36: Заместитель главы администрации города по финансам и экономике, начальник финансового управления | E36: О.М.Горшкова
B38: Заместитель начальника финансового управления | E38: М.Л.Семенович
C50: Исп. В.Н. Милованова
C51: 3-67-17
